bitfinex-derivatives/quotes_BTCF0:USTF0_20210707
["timestamp","ask_amount","ask_price","bid_price","bid_amount"]
[1625624169664,0.001,34094.0,34091.0,0.24507153]
[1625624169665,0.50149964,34092.0,34091.0,0.24507153]
[1625624179211,1.51691008,34092.0,34091.0,0.24507153]
[1625624179636,0.51472602,34092.0,34091.0,0.24507153]
[1625624179935,1.51700507,34092.0,34091.0,0.24507153]
[1625624182942,1.50377869,34092.0,34091.0,0.24507153]
[1625624183182,1.51700493,34092.0,34091.0,0.24507153]
[1625624188232,2.68979592,34092.0,34091.0,0.24507153]
[1625624189250,2.97686592,34092.0,34091.0,0.24507153]
[1625624190692,2.68979592,34092.0,34091.0,0.24507153]
[1625624190815,1.51700493,34092.0,34091.0,0.58996077]
[1625624191053,1.51700493,34092.0,34091.0,0.67618741]
[1625624191298,2.69131316,34092.0,34091.0,1.10757303]
[1625624192555,2.69131316,34092.0,34091.0,0.76268379]
[1625624193098,1.51700493,34092.0,34091.0,0.76268379]
[1625624193697,2.69207355,34092.0,34091.0,0.76268379]
[1625624193939,1.51700493,34092.0,34091.0,0.76268379]
[1625624194423,1.51700493,34092.0,34091.0,1.79819166]
[1625624194664,1.51700493,34092.0,34091.0,0.76268379]
[1625624195205,2.69231035,34092.0,34091.0,0.76268379]
[1625624195624,2.69231035,34092.0,34091.0,1.7985776]
[1625624195864,2.69231035,34092.0,34091.0,0.76268379]
[1625624196346,2.69231035,34092.0,34091.0,1.7985784]
[1625624198390,2.69231035,34092.0,34091.0,1.8876784]
[1625624198690,2.67908411,34092.0,34091.0,1.8876784]
[1625624198990,2.67908411,34092.0,34091.0,1.7985784]
[1625624199354,2.67908411,34092.0,34091.0,3.00852633]
[1625624200252,1.50377869,34092.0,34091.0,4.391278]
[1625624202713,0.50149964,34092.0,34091.0,4.391278]
[1625624203855,1.5129838,34092.0,34091.0,4.391278]
[1625624204456,0.50149964,34092.0,34091.0,4.391278]
[1625624204575,1.17580459,34092.0,34091.0,5.08259084]
[1625624205719,2.18731622,34092.0,34091.0,5.08259084]
[1625624206381,1.17580459,34092.0,34091.0,5.08259084]
[1625624207343,2.18717915,34092.0,34091.0,5.08259084]
[1625624209568,1.17580459,34092.0,34091.0,5.08259084]
[1625624209810,0.25441594,34093.0,34091.0,7.13825034]
[1625624210048,0.25441594,34093.0,34092.0,6.39361099]
[1625624210049,0.001,34093.0,34092.0,6.39361099]
[1625624210167,0.001,34093.0,34092.0,6.69756099]
[1625624210287,0.001,34093.0,34092.0,6.70207599]
[1625624210833,0.001,34093.0,34092.0,8.42996872]
[1625624211070,0.001,34093.0,34092.0,6.70207599]
[1625624211911,0.001,34093.0,34092.0,6.39812599]
[1625624212273,0.25413675,34093.0,34092.0,4.84292332]
[1625624212516,0.50653497,34093.0,34092.0,4.84292332]
[1625624212813,3.36842837,34093.0,34092.0,3.46052094]
[1625624213115,3.36842837,34093.0,34092.0,2.25091886]
[1625624213533,2.19004128,34093.0,34092.0,3.46005719]
[1625624213715,2.43061672,34093.0,34092.0,3.46005719]
[1625624214075,2.19004128,34093.0,34092.0,3.46005719]
[1625624214316,2.19004128,34093.0,34092.0,5.13363402]
[1625624214559,0.08537681,34093.0,34092.0,5.13363402]
[1625624214977,0.001,34093.0,34092.0,6.68778872]
[1625624217319,0.001,34094.0,34092.0,6.68778872]
[1625624217617,0.001,34094.0,34093.0,0.0045174]
[1625624217741,0.50660904,34094.0,34093.0,4.838488]
[1625624217918,1.18001521,34094.0,34093.0,4.838488]
[1625624218158,0.50631629,34094.0,34093.0,4.838488]
[1625624218821,1.18003631,34094.0,34093.0,4.838488]
[1625624219121,0.50631629,34094.0,34093.0,4.838488]
[1625624219423,1.17989177,34094.0,34093.0,3.45735354]
[1625624220024,2.18989197,34094.0,34093.0,3.45735354]
[1625624220865,2.18989197,34094.0,34093.0,3.45283614]
[1625624221165,2.18989197,34094.0,34093.0,3.45735464]
[1625624222668,0.50656013,34094.0,34093.0,4.83835802]
[1625624223149,0.001,34094.0,34093.0,4.83835802]
[1625624223690,0.59088246,34094.0,34093.0,4.83835802]
[1625624223929,0.50651731,34094.0,34093.0,4.83835802]
[1625624224108,0.33795541,34094.0,34093.0,4.83835802]
[1625624224351,0.50645804,34094.0,34093.0,4.83835802]
[1625624225311,0.59082815,34094.0,34093.0,4.83835802]
[1625624225792,0.50645804,34094.0,34093.0,4.83835802]
[1625624225912,0.79912804,34094.0,34093.0,4.83835802]
[1625624226275,1.47202452,34094.0,34093.0,3.45735464]
[1625624226396,1.47102452,34094.0,34093.0,3.45735464]
[1625624226755,2.48060822,34094.0,34093.0,3.45735464]
[1625624226935,2.48060822,34094.0,34093.0,2.24886199]
[1625624227955,3.65801063,34094.0,34093.0,2.24886199]
[1625624228136,2.48060822,34094.0,34093.0,2.24886199]
[1625624228736,3.6575052,34094.0,34093.0,1.21301115]
[1625624229096,3.6575052,34094.0,34093.0,0.52244392]
[1625624229760,3.6575052,34094.0,34093.0,0.86767283]
[1625624229878,3.89808064,34094.0,34093.0,0.86767283]
[1625624229998,3.89808064,34094.0,34093.0,0.52244392]
[1625624232886,5.24334778,34094.0,34093.0,0.52244392]
[1625624233367,3.89808064,34094.0,34093.0,0.52244392]
[1625624233550,5.24337454,34094.0,34093.0,0.52244392]
[1625624233847,3.89808064,34094.0,34093.0,0.52244392]
[1625624234091,5.24334189,34094.0,34093.0,0.52244392]
[1625624234209,3.89808064,34094.0,34093.0,0.52244392]
[1625624234450,3.89808064,34094.0,34093.0,0.51792542]
[1625624234749,3.89808064,34094.0,34093.0,1.20848668]
[1625624234929,3.89808064,34094.0,34093.0,0.51792542]
[1625624235412,3.89808064,34094.0,34093.0,1.20852222]
[1625624235950,5.24337686,34094.0,34093.0,0.51792542]
[1625624237754,5.24337686,34094.0,34093.0,0.863255]
[1625624239318,5.24337686,34094.0,34093.0,0.51800258]
[1625624239861,5.24337686,34094.0,34093.0,0.25901032]
[1625624240464,5.24337686,34094.0,34093.0,0.6043588]
[1625624240763,5.24337686,34094.0,34093.0,0.25901032]
[1625624241305,5.24337686,34094.0,34093.0,0.60437554]
[1625624242027,5.24337686,34094.0,34093.0,0.51803822]
[1625624242206,5.24337686,34094.0,34093.0,0.86341236]
[1625624242448,5.24337686,34094.0,34093.0,0.34536522]
[1625624242748,5.24337686,34094.0,34093.0,0.51804741]
[1625624244910,5.24337686,34094.0,34093.0,0.34536522]
[1625624245150,5.24337686,34094.0,34093.0,0.60439863]
[1625624248876,5.25655266,34094.0,34093.0,0.60891831]
[1625624249417,5.25655266,34094.0,34093.0,0.26355309]
[1625624250019,5.25655266,34094.0,34093.0,0.00451968]
[1625624252842,5.25655266,34094.0,34092.0,0.25908474]
[1625624253083,0.01315694,34093.0,34092.0,0.25908474]
[1625624253205,4.71775489,34093.0,34092.0,0.08636158]
[1625624253388,4.71775489,34093.0,34092.0,0.09088644]
[1625624253927,4.71775489,34093.0,34092.0,0.26359882]
[1625624254166,4.71775489,34093.0,34092.0,0.60902353]
[1625624254411,4.71775489,34093.0,34092.0,0.52266195]
[1625624255853,4.71775489,34093.0,34092.0,0.8680723]
[1625624256093,4.71775489,34093.0,34092.0,0.60901199]
[1625624256393,4.71775489,34093.0,34092.0,0.26358728]
[1625624256633,4.71775489,34093.0,34092.0,0.090879]
[1625624256873,4.71775489,34093.0,34092.0,0.52264852]
[1625624257535,4.71775489,34093.0,34092.0,0.6089995]
[1625624258015,4.71775489,34093.0,34092.0,0.52264852]
[1625624258257,4.71775489,34093.0,34092.0,0.86803735]
[1625624258559,4.71775489,34093.0,34092.0,0.52264212]
[1625624262760,4.71775489,34093.0,34092.0,0.26357536]
[1625624263241,4.71775489,34093.0,34092.0,0.09087387]
[1625624264083,4.70459795,34093.0,34092.0,0.08634901]
[1625624264204,4.70459795,34093.0,34092.0,0.25903621]
[1625624264324,4.71775451,34093.0,34092.0,0.2635615]
[1625624264684,4.71775451,34093.0,34092.0,0.0908743]
[1625624265225,4.71775451,34093.0,34092.0,0.00452529]
[1625624268898,6.22744193,34093.0,34092.0,0.00452529]
[1625624269138,6.22744193,34093.0,34087.0,0.0873436]
[1625624269436,4.69187711,34088.0,34087.0,0.001]
[1625624269558,4.95998711,34088.0,34087.0,0.001]
[1625624269856,4.97314521,34088.0,34087.0,0.00552596]
[1625624270096,5.45429609,34088.0,34087.0,0.00552596]
[1625624270517,9.62089609,34088.0,34087.0,0.00552596]
[1625624271717,5.45429609,34088.0,34087.0,0.00552596]
[1625624271897,4.94561065,34088.0,34087.0,0.00552596]
[1625624272081,4.70503521,34088.0,34087.0,0.2461014]
[1625624272261,3.36457069,34088.0,34087.0,1.45494491]
[1625624272500,3.36457069,34088.0,34087.0,2.49108274]
[1625624272620,3.35141259,34088.0,34087.0,7.09228274]
[1625624273768,2.1784852,34088.0,34087.0,7.09228274]
[1625624274009,0.25237621,34088.0,34087.0,9.68213099]
[1625624274366,0.25258541,34091.0,34087.0,11.23588744]
[1625624274485,0.25267199,34092.0,34090.0,4.83362936]
[1625624274785,0.25267199,34092.0,34091.0,4.83352961]
[1625624275027,0.25384732,34094.0,34091.0,6.39184049]
[1625624275205,0.25384732,34094.0,34093.0,4.83401875]
[1625624275206,0.08533855,34094.0,34093.0,4.83401875]
[1625624275448,0.001,34094.0,34093.0,4.83401875]
[1625624275568,0.001,34094.0,34093.0,4.83852607]
[1625624276168,0.001,34094.0,34093.0,7.11375517]
[1625624276830,0.001,34094.0,34093.0,5.56025239]
[1625624277310,0.58980401,34095.0,34093.0,5.56025239]
[1625624277430,0.58980401,34095.0,34094.0,4.83363007]
[1625624277611,0.58980401,34095.0,34094.0,5.12269646]
[1625624278450,0.59024689,34097.0,34094.0,6.67632326]
[1625624278691,0.08646671,34098.0,34096.0,6.38701338]
[1625624278869,0.08646671,34098.0,34097.0,8.71457268]
[1625624278990,0.08646671,34098.0,34097.0,8.71907857]
[1625624279291,0.002,34098.0,34097.0,8.71907857]
[1625624280133,0.002,34098.0,34097.0,8.95965401]
[1625624281815,0.002,34098.0,34097.0,5.07865401]
[1625624282174,0.50787284,34098.0,34097.0,5.07865401]
[1625624282596,1.51780563,34098.0,34097.0,3.69763324]
[1625624282714,2.19151573,34098.0,34097.0,2.48473418]
[1625624283017,3.3699816,34098.0,34097.0,1.44896861]
[1625624283258,4.7159078,34098.0,34097.0,0.49945234]
[1625624283496,4.7159078,34098.0,34097.0,0.32686774]
[1625624284036,4.7159078,34098.0,34097.0,0.24057544]
[1625624284158,5.25875324,34098.0,34097.0,0.24057544]
[1625624284279,5.25875324,34098.0,34097.0,0.32687873]
[1625624284756,5.25875324,34098.0,34097.0,0.24057544]
[1625624286079,5.25875324,34098.0,34097.0,0.75841093]
[1625624286198,4.7159078,34098.0,34097.0,0.75841093]
[1625624286379,3.3679816,34098.0,34097.0,1.44882164]
[1625624286741,3.3679816,34098.0,34097.0,2.48446053]
[1625624287162,2.18951573,34098.0,34097.0,2.48446053]
[1625624287403,2.18951573,34098.0,34097.0,3.69259322]
[1625624287701,1.17903477,34098.0,34097.0,3.69709922]
[1625624287949,0.84315326,34098.0,34097.0,5.0777701]
[1625624288186,0.50681016,34098.0,34097.0,5.0777701]
[1625624288605,0.25357276,34098.0,34097.0,5.0777701]
[1625624289145,0.59253309,34099.0,34097.0,5.0777701]
[1625624289325,0.25467488,34099.0,34098.0,4.83079457]
[1625624289447,0.25467488,34099.0,34098.0,4.83530028]
[1625624289989,0.001,34099.0,34098.0,4.83530028]
[1625624290167,0.001,34099.0,34098.0,5.07587572]
[1625624292095,0.001,34099.0,34098.0,5.07137001]
[1625624293294,0.001,34099.0,34098.0,3.69114299]
[1625624295337,1.04365104,34100.0,34098.0,3.69114299]
[1625624295576,0.9591,34100.0,34099.0,3.44544596]
[1625624296235,0.9591,34100.0,34099.0,3.6860214]
[1625624297017,0.9591,34100.0,34099.0,2.48011531]
[1625624297317,1.04363884,34100.0,34099.0,2.48011531]
[1625624298101,1.55000142,34100.0,34099.0,6.63541531]
[1625624298400,1.29661883,34100.0,34099.0,5.60178152]
[1625624298640,1.80271173,34100.0,34099.0,5.60178152]
[1625624299483,1.46541403,34100.0,34099.0,5.60178152]
[1625624299961,1.80260718,34100.0,34099.0,5.60178152]
[1625624301048,2.08537718,34100.0,34099.0,5.60178152]
[1625624301769,2.08537718,34100.0,34099.0,4.91269233]
[1625624302380,1.74785835,34100.0,34099.0,5.2570677]
[1625624302556,1.74785835,34100.0,34099.0,5.26158867]
[1625624302677,2.42227115,34100.0,34099.0,5.00306371]
[1625624303940,2.42227115,34100.0,34099.0,0.84776371]
[1625624304301,2.66284659,34100.0,34099.0,0.50338834]
[1625624305202,3.67442546,34100.0,34099.0,0.24509641]
[1625624307366,3.67342546,34100.0,34099.0,0.24509641]
[1625624309168,3.67342546,34100.0,34099.0,4.16889641]
[1625624309409,2.66184659,34100.0,34099.0,4.77157197]
[1625624309648,2.42127115,34100.0,34099.0,4.77157197]
[1625624309771,1.80174457,34100.0,34099.0,5.37420826]
[1625624310011,1.21160257,34100.0,34099.0,5.37420826]
[1625624310188,1.21160257,34100.0,34099.0,6.40731799]
[1625624310429,0.9581,34100.0,34099.0,6.40731799]
[1625624310669,1.21166273,34100.0,34099.0,6.40731799]
[1625624311631,1.80236485,34100.0,34099.0,5.37420826]
[1625624312412,1.46482959,34100.0,34099.0,5.37420826]
[1625624312774,1.80278945,34100.0,34099.0,5.37420826]
[1625624313011,1.80278945,34100.0,34099.0,4.68545863]
[1625624313012,1.46504975,34100.0,34099.0,4.68545863]
[1625624313252,1.80308803,34100.0,34099.0,5.37425746]
[1625624313972,2.14085617,34100.0,34099.0,5.02986776]
[1625624314212,2.14085617,34100.0,34099.0,4.68545863]
[1625624314455,2.14085617,34100.0,34099.0,5.02988482]
[1625624314754,2.14085617,34100.0,34099.0,4.68553872]
[1625624314994,2.14085617,34100.0,34099.0,5.02996588]
[1625624316917,3.15443204,34100.0,34099.0,4.6855567]
[1625624317579,3.15443204,34100.0,34099.0,4.77168024]
[1625624319201,3.15443204,34100.0,34099.0,4.6855567]
[1625624319683,3.15443204,34100.0,34099.0,4.5133226]
[1625624320042,3.15443204,34100.0,34099.0,5.0301498]
[1625624320284,3.15443204,34100.0,34099.0,4.68572361]
[1625624320883,3.42624204,34100.0,34099.0,4.68572361]
[1625624321003,3.42624204,34100.0,34099.0,5.03030833]
[1625624321484,3.42624204,34100.0,34099.0,4.68572361]
[1625624321730,3.42624204,34100.0,34099.0,5.03033203]
[1625624321845,3.43940248,34100.0,34099.0,5.03033203]
[1625624323110,3.43940248,34100.0,34099.0,4.68572361]
[1625624323412,3.43940248,34100.0,34099.0,5.03040316]
[1625624324194,3.43940248,34100.0,34099.0,4.68572361]
[1625624324616,3.43940248,34100.0,34099.0,5.37519487]
[1625624325937,3.43940248,34100.0,34099.0,4.68572361]
[1625624326179,3.43940248,34100.0,34099.0,5.37526585]
[1625624329242,4.62659052,34100.0,34099.0,5.37526585]
[1625624330382,4.62659052,34100.0,34099.0,6.41080123]
[1625624331345,4.62659052,34100.0,34099.0,7.62003823]
[1625624332006,4.62659052,34100.0,34099.0,6.41080123]
[1625624332247,5.98571652,34100.0,34099.0,6.41080123]
[1625624332730,4.62659052,34100.0,34099.0,7.62009829]
[1625624333453,5.98527708,34100.0,34099.0,7.62009829]
[1625624346371,5.98527708,34100.0,34099.0,9.00396073]
[1625624348717,5.98527708,34100.0,34099.0,5.08016073]
[1625624348840,5.98527708,34100.0,34099.0,3.45572285]
[1625624349139,7.51851602,34100.0,34099.0,2.24642579]
[1625624349323,7.51851602,34100.0,34099.0,1.21089041]
[1625624349441,12.05721602,34100.0,34099.0,1.21089041]
[1625624349561,12.05721602,34100.0,34099.0,0.52134817]
[1625624349800,12.05721602,34100.0,34099.0,0.61005886]
[1625624350041,12.05721602,34100.0,34099.0,0.26403721]
[1625624350581,12.05721602,34100.0,34099.0,0.09102638]
[1625624350765,12.5383669,34100.0,34099.0,0.09102638]
[1625624351602,12.5383669,34100.0,34099.0,0.00452097]
[1625624352206,12.5383669,34100.0,34098.0,0.08648653]
[1625624352384,6.29394094,34099.0,34097.0,0.25945875]
[1625624352505,6.30712508,34099.0,34097.0,0.25945875]
[1625624352803,6.54825993,34098.0,34097.0,0.25945875]
[1625624353944,6.54825993,34098.0,34097.0,0.08647151]
[1625624355632,6.54825993,34098.0,34096.0,0.08644263]
[1625624355750,4.75989833,34097.0,34096.0,0.08644263]
[1625624355873,6.28976246,34097.0,34096.0,0.08644263]
[1625624355991,6.3029483,34097.0,34096.0,0.25932802]
[1625624356472,6.3029483,34097.0,34096.0,0.08644263]
[1625624357251,6.3029483,34097.0,34095.0,0.60506301]
[1625624357494,6.30084587,34096.0,34095.0,0.60506301]
[1625624358334,6.30084587,34096.0,34095.0,0.25929248]
[1625624358579,6.30084587,34096.0,34095.0,0.6049033]
[1625624359119,6.28766092,34096.0,34095.0,0.51847244]
[1625624359362,4.75830795,34096.0,34095.0,1.21412989]
[1625624359602,4.75830795,34096.0,34095.0,2.2508638]
[1625624360804,4.75830795,34096.0,34095.0,2.49143924]
[1625624361103,4.75830795,34096.0,34095.0,7.01043924]
[1625624363096,3.39886421,34096.0,34095.0,8.45216148]
[1625624363576,2.2093297,34096.0,34095.0,9.83426179]
[1625624366533,3.40002799,34096.0,34095.0,8.45216148]
[1625624366653,3.70243799,34096.0,34095.0,8.45216148]
[1625624367013,5.06274781,34096.0,34095.0,7.24279924]
[1625624367132,5.06274781,34096.0,34095.0,7.01043924]
[1625624367792,5.06274781,34096.0,34095.0,7.00592205]
[1625624368036,5.06274781,34096.0,34095.0,7.01043918]
[1625624376443,3.40002799,34096.0,34095.0,8.21977133]
[1625624380114,4.76038698,34096.0,34095.0,7.01043918]
[1625624380896,4.77357924,34096.0,34095.0,7.01043918]
[1625624384083,4.77357924,34096.0,34095.0,5.97370527]
[1625624384503,4.77357924,34096.0,34095.0,7.0103845]
[1625624386970,4.77357924,34096.0,34095.0,5.97370527]
[1625624388954,4.77357924,34096.0,34095.0,7.01038017]
[1625624397013,4.77357924,34096.0,34095.0,8.22016815]
[1625624397492,4.77357924,34096.0,34095.0,7.01038017]
[1625624400617,4.77357924,34096.0,34095.0,7.24420017]
[1625624401042,4.77357924,34096.0,34095.0,8.45416971]
[1625624402540,3.41322025,34096.0,34095.0,8.45416971]
[1625624402720,3.40002799,34096.0,34095.0,8.45416971]
[1625624402843,2.2093297,34096.0,34095.0,9.83703316]
[1625624403081,1.18970442,34096.0,34095.0,11.87376398]
[1625624403380,0.59593435,34096.0,34095.0,11.87376398]
[1625624403622,0.08523069,34096.0,34095.0,11.87376398]
[1625624403800,0.08627449,34097.0,34095.0,11.87376398]
[1625624404221,0.08627449,34097.0,34096.0,6.39397936]
[1625624404341,0.08627449,34097.0,34096.0,6.39849389]
[1625624404581,0.001,34097.0,34096.0,6.39849389]
[1625624407286,0.25671355,34098.0,34096.0,6.39849389]
[1625624407405,0.25671355,34098.0,34097.0,0.0888]
[1625624407646,0.08629101,34098.0,34097.0,6.48078014]
[1625624407766,0.08629101,34098.0,34097.0,6.48529464]
[1625624407888,0.25668093,34098.0,34097.0,6.48529464]
[1625624408308,0.25668093,34098.0,34097.0,6.39649464]
[1625624408547,0.001,34098.0,34097.0,6.39649464]
[1625624409147,0.001,34098.0,34097.0,6.63707008]
[1625624410292,0.001,34098.0,34097.0,6.72557008]
[1625624412035,0.001,34098.0,34097.0,6.63707008]
[1625624412994,0.001,34098.0,34097.0,6.72587008]
[1625624413656,0.001,34098.0,34097.0,6.63707008]
[1625624414740,0.0005428,34098.0,34097.0,6.72507008]
[1625624416361,0.0005428,34099.0,34097.0,6.72507008]
[1625624416540,0.0005428,34099.0,34098.0,4.14041061]
[1625624416659,0.0005428,34099.0,34098.0,6.38764591]
[1625624420566,0.0005428,34099.0,34098.0,4.83499193]
[1625624425076,0.08563401,34099.0,34098.0,4.83499193]
[1625624425257,0.59542814,34099.0,34098.0,4.83499193]
[1625624425676,4.18438942,34099.0,34098.0,3.45485506]
[1625624426217,4.86342081,34099.0,34098.0,3.45485506]
[1625624427121,4.86342081,34099.0,34098.0,1.21213265]
[1625624427122,7.30974658,34099.0,34098.0,1.21213265]
[1625624427363,8.6671847,34099.0,34098.0,0.6082247]
[1625624427603,8.6671847,34099.0,34098.0,0.26324652]
[1625624428202,8.6671847,34099.0,34098.0,0.00451288]
[1625624428322,8.68037535,34099.0,34098.0,0.00451288]
[1625624428444,8.67983255,34099.0,34098.0,0.00451288]
[1625624428565,8.67983255,34099.0,34097.0,0.84431069]
[1625624428863,4.75126367,34098.0,34097.0,0.84431069]
[1625624429166,4.75126367,34098.0,34097.0,0.5038302]
[1625624429404,3.39383247,34098.0,34097.0,0.84880451]
[1625624429585,3.39383247,34098.0,34097.0,0.76255778]
[1625624429825,4.75213877,34098.0,34097.0,0.76255778]
[1625624429946,4.76532961,34098.0,34097.0,0.76255778]
[1625624430067,4.76532961,34098.0,34097.0,0.33133575]
[1625624430247,4.75213877,34098.0,34097.0,0.33133575]
[1625624430366,4.75213877,34098.0,34097.0,0.84880774]
[1625624430726,4.75213877,34098.0,34097.0,0.84429316]
[1625624430846,4.75213877,34098.0,34097.0,0.24057544]
[1625624431752,4.75213877,34098.0,34097.0,0.75804844]
[1625624431869,4.75213877,34098.0,34097.0,0.76256424]
[1625624431987,3.39383247,34098.0,34097.0,5.67366424]
[1625624432169,3.39383247,34098.0,34097.0,0.76256424]
[1625624432408,4.75177459,34098.0,34097.0,0.84880798]
[1625624432649,4.75177459,34098.0,34097.0,0.24057544]
[1625624432953,6.27810513,34098.0,34097.0,0.24057544]
[1625624433188,6.29129241,34098.0,34094.0,0.08624743]
[1625624433369,6.27810513,34098.0,34094.0,0.08624743]
[1625624433610,5.01428323,34095.0,34093.0,0.84531278]
[1625624433850,3.39164809,34094.0,34093.0,0.84531278]
[1625624434091,3.39164809,34094.0,34093.0,0.75906476]
[1625624434333,3.39164809,34094.0,34093.0,0.001]
[1625624434334,4.74783268,34094.0,34093.0,0.001]
[1625624435291,5.22898356,34094.0,34093.0,0.001]
[1625624435712,6.75301009,34094.0,34093.0,0.001]
[1625624435892,6.75301009,34094.0,34093.0,0.00053634]
[1625624437398,6.75301009,34094.0,34088.0,0.00053634]
[1625624437575,4.73873389,34089.0,34088.0,0.00053634]
[1625624439018,3.38488244,34089.0,34088.0,0.00053634]
[1625624439138,2.20024127,34089.0,34088.0,1.20735014]
[1625624439258,2.20024127,34089.0,34088.0,1.44792558]
[1625624439378,0.50780005,34089.0,34088.0,2.48222251]
[1625624439858,1.18570377,34089.0,34088.0,2.48222251]
[1625624440338,0.50780005,34089.0,34088.0,2.48222251]
[1625624441961,0.8467499,34089.0,34088.0,2.48222251]
[1625624442143,0.8467499,34089.0,34088.0,6.46612251]
[1625624442742,1.18551721,34089.0,34088.0,5.43182558]
[1625624443044,0.50780005,34089.0,34088.0,6.46584782]
[1625624443403,1.1854796,34089.0,34088.0,5.43182558]
[1625624444004,0.50780005,34089.0,34088.0,5.43182558]
[1625624444245,1.18540019,34089.0,34088.0,5.43182558]
[1625624445872,2.49126678,34089.0,34088.0,4.82803721]
[1625624446169,2.49126678,34089.0,34088.0,4.48345125]
[1625624446291,2.49126678,34089.0,34088.0,4.48291491]
[1625624446411,2.49126678,34089.0,34088.0,4.31062193]
[1625624446890,2.49126678,34089.0,34088.0,4.22447544]
[1625624447071,2.49126678,34089.0,34088.0,0.24057544]
[1625624447191,3.67850555,34089.0,34088.0,0.24057544]
[1625624448394,3.76650555,34089.0,34086.0,0.32672257]
[1625624448573,3.39288275,34087.0,34086.0,0.24057544]
[1625624449057,4.75104331,34087.0,34086.0,0.24057544]
[1625624449355,4.99161875,34087.0,34086.0,0.24057544]
[1625624449475,3.72015819,34087.0,34083.0,0.2588751]
[1625624449718,4.7515504,34084.0,34083.0,0.00053634]
[1625624451459,4.99212584,34084.0,34083.0,0.00053634]
[1625624451759,5.07942584,34084.0,34083.0,0.00053634]
[1625624451942,6.60380478,34084.0,34083.0,0.00053634]
[1625624452664,6.51650478,34084.0,34083.0,0.00053634]
[1625624452842,4.99212584,34084.0,34083.0,0.00053634]
[1625624453443,4.99212584,34084.0,34083.0,0.24111178]
[1625624455307,4.99212584,34084.0,34083.0,0.24057544]
[1625624455429,5.28759584,34084.0,34083.0,0.24057544]
[1625624456390,5.28759584,34084.0,34078.0,0.00053634]
[1625624456635,1.18343026,34079.0,34078.0,0.00053634]
[1625624456757,1.18343026,34079.0,34073.0,0.002]
[1625624456876,4.72668979,34079.0,34073.0,0.002]
[1625624457175,0.0877,34081.0,34073.0,0.002]
[1625624457176,3.66905805,34074.0,34073.0,0.002]
[1625624457356,5.01827399,34074.0,34073.0,0.002]
[1625624457476,5.74000031,34074.0,34073.0,0.002]
[1625624459279,4.39078437,34074.0,34073.0,0.002]
[1625624462521,3.210285,34074.0,34073.0,0.002]
[1625624463783,3.710285,34074.0,34073.0,0.002]
[1625624464205,4.88437623,34074.0,34073.0,0.002]
[1625624465112,4.38437623,34074.0,34068.0,0.003]
[1625624465230,4.88437623,34074.0,34068.0,0.003]
[1625624465350,0.58651459,34070.0,34068.0,0.003]
[1625624465472,0.48115088,34069.0,34068.0,0.003]
[1625624467335,0.48115088,34069.0,34068.0,0.001]
[1625624473766,5.41775088,34069.0,34068.0,0.001]
[1625624475863,0.48115088,34069.0,34068.0,0.001]
[1625624476343,0.48115088,34069.0,34063.0,0.001]
[1625624476765,0.48115088,34069.0,34068.0,4.0293]
[1625624476885,0.48115088,34069.0,34068.0,4.24041]
[1625624477728,0.48115088,34069.0,34068.0,4.48098544]
[1625624480313,0.48115088,34069.0,34068.0,0.45168544]
[1625624480434,0.48115088,34069.0,34063.0,0.001]
[1625624480554,0.79888088,34069.0,34063.0,0.001]
[1625624480855,0.88708088,34069.0,34063.0,0.001]
[1625624480977,0.25148523,34067.0,34063.0,0.001]
[1625624481274,0.58649995,34067.0,34063.0,0.001]
[1625624481754,0.24057544,34064.0,34063.0,0.001]
[1625624485363,0.24057544,34064.0,34059.0,0.24057544]
[1625624485720,0.24057544,34064.0,34060.0,0.00452147]
[1625624485721,0.32466708,34064.0,34060.0,0.00452147]
[1625624487042,0.01318974,34063.0,34060.0,0.00452147]
[1625624487584,0.32466708,34064.0,34060.0,0.00452147]
[1625624487827,0.24057544,34061.0,34060.0,0.00452147]
[1625624495220,0.2537821,34061.0,34060.0,0.00452147]
[1625624502442,0.33830024,34061.0,34060.0,0.00452147]
[1625624503163,0.84456588,34061.0,34060.0,0.00452147]
[1625624503403,1.09780158,34061.0,34060.0,0.00452147]
[1625624504727,1.09780158,34061.0,34060.0,0.30569147]
[1625624504906,0.85722614,34061.0,34060.0,0.30569147]
[1625624505087,0.67590689,34062.0,34060.0,0.30569147]
[1625624505088,0.0005428,34062.0,34060.0,0.30569147]
[1625624505208,0.08517373,34062.0,34060.0,0.39173041]
[1625624505569,0.50816582,34062.0,34061.0,0.26285913]
[1625624505867,0.25453798,34062.0,34061.0,1.00234762]
[1625624506287,0.08527394,34062.0,34061.0,1.34679323]
[1625624506651,0.59281746,34062.0,34061.0,1.08848]
[1625624506889,0.50808632,34062.0,34061.0,1.08848]
[1625624507129,0.52129174,34062.0,34061.0,0.74402816]
[1625624507310,0.35205421,34062.0,34061.0,0.74402816]
[1625624507431,0.85934432,34062.0,34061.0,0.74402816]
[1625624507673,1.19791617,34062.0,34061.0,1.34758229]
[1625624507972,1.19791617,34062.0,34061.0,1.08901562]
[1625624508516,2.21413573,34062.0,34061.0,1.34838551]
[1625624508695,2.21413573,34062.0,34061.0,1.69374479]
[1625624510559,2.21413573,34062.0,34061.0,2.73002888]
[1625624513685,2.21413573,34062.0,34061.0,3.93948931]
[1625624513805,2.20093031,34062.0,34061.0,3.93948931]
[1625624515069,2.20093031,34062.0,34061.0,5.32284788]
[1625624516570,3.39102661,34062.0,34061.0,5.32284788]
[1625624519338,3.39048381,34062.0,34061.0,5.32284788]
[1625624529134,0.51207525,34062.0,34061.0,6.88054616]
[1625624529372,0.25685475,34063.0,34061.0,6.88054616]
[1625624529552,0.0005428,34063.0,34062.0,6.40358738]
[1625624529673,0.0005428,34063.0,34062.0,6.408102]
[1625624529975,0.0005428,34063.0,34062.0,6.64867744]
[1625624530093,0.0005428,34063.0,34062.0,8.37845721]
[1625624530212,0.0005428,34063.0,34062.0,8.38712327]
[1625624530698,0.0005428,34063.0,34062.0,8.88712327]
[1625624530818,0.002,34068.0,34062.0,8.88712327]
[1625624530937,0.002,34068.0,34062.0,8.89980018]
[1625624531057,0.002,34068.0,34062.0,8.88712327]
[1625624531237,0.002,34068.0,34067.0,8.12874624]
[1625624531357,0.002,34068.0,34067.0,8.45960624]
[1625624531600,0.002,34068.0,34067.0,8.46412001]
[1625624531900,0.002,34068.0,34067.0,6.73459953]
[1625624532017,0.002,34068.0,34067.0,7.21575041]
[1625624532377,0.002,34068.0,34067.0,7.30255041]
[1625624533160,0.002,34068.0,34067.0,7.21575041]
[1625624537007,0.002,34068.0,34067.0,5.32832198]
[1625624537251,0.08541204,34070.0,34067.0,5.32832198]
[1625624537252,0.001,34069.0,34067.0,5.32832198]
[1625624537427,0.001,34069.0,34068.0,4.832559]
[1625624537730,0.001,34069.0,34068.0,4.8370725]
[1625624538028,0.001,34069.0,34068.0,5.07764794]
[1625624542233,0.001,34069.0,34068.0,5.07313444]
[1625624542834,0.25144,34069.0,34068.0,5.07313444]